Cogmind - Beta 15 @@@ ROGUE MODE // 2025.08.12 @ 12:09:52 Player: shapeshifter Result: Destroyed by C9-6PS(R) with Subdweller Beam Cannon Performance ------------- Evolutions (0) 0 Regions Visited (3) 600 Robots Destroyed (9) 45 Value Destroyed (181) 181 Prototype IDs (2) 40 Alien Tech Used (0) 0 Bonus (0) 0 TOTAL SCORE: 866 Bonus ------- None Cogmind --------- Core Integrity 0/250 Matter 261/300 Energy 99/100 System Corruption 3% Temperature Cool (9) Movement Core (100) Ox1 Location -10/Subcaves Parts ------- > --- POWER (1) -------- (None) > --- PROPULSION (2) --- (None) > --- UTILITY (2) ------ Small Storage Unit > --- WEAPON (2) ------- (None) > --- INVENTORY (8) ---- Light Ion Engine Seismic Detector Targeting Computer ECM Suite Peak State ------------ > --- POWER ------------ Ion Engine > --- PROPULSION ------- Light Treads Light Treads > --- UTILITY ---------- Small Storage Unit Improved Terrain Scanner > --- WEAPON ----------- Light Assault Rifle Light Assault Rifle > --- INVENTORY -------- Light Ion Engine Wheel Compact Wheel Seismic Detector Targeting Computer ECM Suite EM Pulse Gun EM Pulse Gun [Rating: 9] Favorites ----------- Power Ion Engine Engine Ion Engine Propulsion Light Treads Treads Light Treads Wheel Compact Wheel Utility Small Storage Unit Device Seismic Detector Storage Small Storage Unit Weapon Light Assault Rifle Energy Gun EM Pulse Gun Ballistic Gun Light Assault Rifle Build | -11 -10 -10 -10 ------- Run | Yrd Mat Min Sub Slots Evolved . | . . . . Power . | . . . . Propulsion . | . . . . Utility . | . . . . Weapon . | . . . . Parts Attached 13 | 6 1 1 5 Power 1 | 1 . . . Engine 1 | 1 . . . Core . | . . . . Reactor . | . . . . Propulsion 4 | 2 . . 2 Treads 2 | 2 . . . Leg . | . . . . Wheel 2 | . . . 2 Hover . | . . . . Flight . | . . . . Utility 3 | 1 1 1 . Device 2 | . 1 1 . Storage 1 | 1 . . . Processor . | . . . . Hackware . | . . . . Protection . | . . . . Artifact . | . . . . Weapon 5 | 2 . . 3 Energy Gun 2 | . . . 2 Energy Cannon . | . . . . Ballistic Gun 3 | 2 . . 1 Ballistic Cannon . | . . . . Launcher . | . . . . Special Weapon . | . . . . Impact Weapon . | . . . . Slashing Weapon . | . . . . Piercing Weapon . | . . . . Special Melee Weapon . | . . . . Unidentified Prototypes . | . . . . Parts Lost 11 | . . . 11 Power 1 | . . . 1 Propulsion 4 | . . . 4 Utility 1 | . . . 1 Weapon 5 | . . . 5 Highest Loss Streak 11 | . . . 11 To Critical Strikes . | . . . . Average Backups 7 | 5 7 8 7 Power . | . 1 1 1 Propulsion 2 | 2 2 2 1 Utility 2 | . 2 3 3 Weapon 1 | . 1 2 1 Tool/Special . | . . . . Unused Backups 5 | . 2 . 3 Power 1 | . . . 1 Propulsion 2 | . 2 . . Utility 2 | . . . 2 Weapon . | . . . . Tool/Special . | . . . . Average Slot Usage (%) 97 | . 100 100 86 Engine 13 | . 14 14 10 Treads 26 | . 28 28 21 Device 13 | . 14 14 12 Storage 14 | . 14 14 14 Ballistic Gun 26 | . 28 28 22 Peak Build Rating 9 | 7 8 9 9 Average Rating 7 | 4 7 8 7 On Entrance 6 | . 7 8 9 Naked Turns . | . . . . Heaviest Build 15 | 12 13 13 15 Greatest Support 40 | 40 40 40 40 Greatest Overweight (x) 2 | . . . 2 Average Overweight (x) . | . . . . Largest Inventory Capacity 8 | 8 8 8 8 Average Capacity 7 | 7 8 8 8 Most Carried 8 | 8 8 8 8 Average Carried 7 | 5 7 8 7 Final Capacity 8 | 8 8 8 8 Final Carried 8 | 8 8 8 4 Class Distribution -------------------- 100% | Mutant Dominant Class ---------------- Mutant | -10/Materials Mutant | -10/Mines Mutant | -10/Subcaves Resources | -11 -10 -10 -10 ----------- Run | Yrd Mat Min Sub Matter Collected 400 | 250 64 40 46 Remotely . | . . . . Salvage Created 274 | 49 124 55 46 Parts 19 | 7 2 5 5 Haulers Intercepted . | . . . . Recyclers Shooed . | . . . . Parts Field Recycled . | . . . . Retrieved Matter . | . . . . Parts Self-Destructed . | . . . . Prevented . | . . . . Kills | -11 -10 -10 -10 ------- Run | Yrd Mat Min Sub Combat Hostiles Destroyed 6 | . 2 3 1 Guns 6 | . 2 3 1 Classes Destroyed 5 | 1 2 1 1 Tunneler 2 | 2 . . . Watcher 1 | . 1 . . Swarmer 3 | . . 3 . Grunt 2 | . 2 . . Subdweller 1 | . . . 1 Best Kill Streak 3 | 2 2 3 1 Combat Bots Only 3 | . 2 3 1 Max Kills in Single Turn 2 | 1 2 1 1 Gunslinging 1 | . 1 . . Exploded . | . . . . Melee . | . . . . Uniques/NPCs Destroyed . | . . . . Combat | -11 -10 -10 -10 -------- Run | Yrd Mat Min Sub Hostile Shots Fired 83 | . 26 23 34 Missed 22 | . 5 9 8 Hits 61 | . 21 14 26 Projectile 61 | . 21 14 26 Critical Strikes 2 | . 1 . 1 Damage Taken 1054 | . 288 119 647 Core 260 | . 50 13 197 Absorbed by Shields . | . . . . Core Remaining (%) 100 | 100 . . . Volleys Fired 57 | 4 25 9 19 Largest 2 | 2 2 2 2 Hottest 80 | 40 40 40 80 Shots Fired 100 | 8 50 18 24 Gun 100 | 8 50 18 24 Cannon . | . . . . Launcher . | . . . . Special . | . . . . Kinetic 95 | 8 50 18 19 Thermal . | . . . . Explosive . | . . . . Electromagnetic 5 | . . . 5 Robot Hit Streak 11 | 5 5 7 11 Robot Miss Streak 3 | 1 3 2 2 Penetration Max . | . . . . Secondary Targets 3 | . 1 2 . Max Gunslinging Chain 1 | . 1 1 . Shots Hit Robots 68 | 6 31 12 19 Core Hits 23 | 3 11 3 6 Critical Kills . | . . . . Critical Parts Destroyed 1 | 1 . . . Critical Strikes 1 | 1 . . . Destroy 1 | 1 . . . Melee Attacks . | . . . . Impact . | . . . . Slashing . | . . . . Piercing . | . . . . Sneak Attacks . | . . . . Combat Hostiles . | . . . . Follow-up Attacks . | . . . . Damage Inflicted 582 | 49 273 92 168 Guns 582 | 49 273 92 168 Cannons . | . . . . Explosions . | . . . . Melee . | . . . . Ramming . | . . . . Kinetic 526 | 49 273 92 112 Thermal . | . . . . Explosive . | . . . . Electromagnetic 56 | . . . 56 Impact . | . . . . Slashing . | . . . . Piercing . | . . . . Highest Corruption 3 | . 3 3 3 Average Corruption 2 | . 2 3 3 Corruption Purged . | . . . . Corruption Blocked . | . . . . Effects 11 | . 2 3 6 Message Errors 3 | . 2 1 . Matter Fused 6 | . . 2 4 Energy Discharges 1 | . . . 1 Parts Rejected 1 | . . . 1 Overload Shots . | . . . . Overflow Damage . | . . . . Projectiles . | . . . . Explosions . | . . . . Melee . | . . . . Knockbacks . | . . . . Impact . | . . . . Kinetic . | . . . . Secondary . | . . . . Self-Inflicted Damage . | . . . . Shots . | . . . . Rammed . | . . . . Targets Rammed . | . . . . Kicked . | . . . . Crushed . | . . . . Highest Temperature 55 | . 55 . . Average Temperature 34 | . 34 . . Received Heat Transfer 366 | . 177 . 189 Siege Activations . | . . . . Martial Activations . | . . . . Shielding Activations . | . . . . Robots Disrupted . | . . . . Combat Hostiles . | . . . . Robots Corrupted . | . . . . Combat Hostiles . | . . . . Parts Fried . | . . . . Impact Corruptions . | . . . . Robots Melted . | . . . . Combat Hostiles . | . . . . Parts Melted . | . . . . Heat Transferred . | . . . . Parts Sabotaged . | . . . . Parts Stolen . | . . . . Parts Stripped . | . . . . Power Chain Reactions . | . . . . Alert | -11 -10 -10 -10 ------- Run | Yrd Mat Min Sub Maximum Alert Level . | . . . . Low Security (%) 100 | 100 100 100 . Level 1 . | . . . . Level 2 . | . . . . Level 3 . | . . . . Level 4 . | . . . . Level 5 . | . . . . High Security . | . . . . Max Security . | . . . . Peak Influence 60 | 5 57 60 . Initial . | . . . . Average 10 | . 9 22 . Influence Increases 153 | 10 73 70 . Destroy 0b10 Robot/C 100 | . 40 60 . Destroy 0b10 Robot/NC 15 | 10 5 . . Destroy Leader 22 | . 12 10 . Successful Hack 16 | . 16 . . Influence Decreases 153 | 10 73 70 . Time Decay 153 | 10 73 70 . Squads Dispatched 1 | . 1 . . Investigation 1 | . 1 . . Extermination . | . . . . Reinforcement . | . . . . Assault . | . . . . Garrison . | . . . . Intercept . | . . . . Searches Triggered . | . . . . Construction Impeded . | . . . . Haulers Reinforced . | . . . . Active Scanning Responses . | . . . . Cargo Convoy Interrupts . | . . . . Stealth | -11 -10 -10 -10 --------- Run | Yrd Mat Min Sub Distress Signals . | . . . . Communications Jammed . | . . . . Distress Signals . | . . . . Times Spotted 16 | . 10 3 3 Peak Tracking Total 3 | . 2 3 3 Tactical Retreats . | . . . . Traps | -11 -10 -10 -10 ------- Run | Yrd Mat Min Sub Traps Triggered 2 | . 2 . . Indirectly . | . . . . Trap Hack Attempts . | . . . . Triggered . | . . . . Disarmed . | . . . . Reprogrammed . | . . . . Reused . | . . . . Traps Extracted . | . . . . Installed . | . . . . Triggered . | . . . . Machines | -11 -10 -10 -10 ---------- Run | Yrd Mat Min Sub Machines Disabled . | . . . . Max in Single Turn . | . . . . Machines Repaired . | . . . . Machines Dismantled . | . . . . Machines Sabotaged . | . . . . Overloaded Fab Kills . | . . . . Hacking | -11 -10 -10 -10 --------- Run | Yrd Mat Min Sub Machines Accessed 7 | . 6 . 1 Terminals 6 | . 6 . . Fabricators . | . . . . Repair Stations . | . . . . Recycling Units . | . . . . Scanalyzers . | . . . . Garrison Access . | . . . . Total Hacks 16 | . 13 . 3 Successful 8 | . 5 . 3 Failed 8 | . 8 . . Catastrophic 2 | . 2 . . Database Lockouts . | . . . . Manual 7 | . 7 . . Terminals 13 | . 13 . . Fabricators . | . . . . Repair Stations . | . . . . Recycling Units . | . . . . Scanalyzers . | . . . . Garrison Access . | . . . . Terminal Hacks 6 | . 3 . 3 Record 3 | . . . 3 Prototype ID Bank 1 | . 1 . . Registered Prototypes 1 | . 1 . . Zone Layout 1 | . 1 . . Fabricator Hacks . | . . . . Repair Station Hacks . | . . . . Recycling Unit Hacks . | . . . . Scanalyzer . | . . . . Garrison Access Hacks . | . . . . Unauthorized Hacks 2 | . 2 . . Terminals 2 | . 2 . . Botnet 2 | . 2 . . Fabricators . | . . . . Repair Stations . | . . . . Recycling Units . | . . . . Scanalyzers . | . . . . Garrison Access . | . . . . Data Cores Recovered . | . . . . Used . | . . . . Hacking Detections 5 | . 5 . . Full Trace Events 4 | . 4 . . Feedback Events . | . . . . Feedback Blocked . | . . . . Robot Schematics Acquired . | . . . . Robots Built . | . . . . Authchips . | . . . . Time . | . . . . Total Robot Build Rating . | . . . . Part Schematics Acquired . | . . . . Parts Built . | . . . . Authchips . | . . . . Time . | . . . . Total Part Build Rating . | . . . . Parts Repaired . | . . . . Time . | . . . . Parts Recycled . | . . . . Recycled Matter . | . . . . Retrieved Matter . | . . . . Retrieved Components . | . . . . Parts Scanalyzed . | . . . . Part Schematics Acquired . | . . . . Parts Damaged . | . . . . Bothacking | -11 -10 -10 -10 ------------ Run | Yrd Mat Min Sub Used RIF Installer . | . . . . Robots Hacked . | . . . . Non-combat . | . . . . Combat . | . . . . Robot Hacks Applied . | . . . . Relay Couplers Released . | . . . . Fabnet Peak Effective % . | . . . . Robots Rewired . | . . . . Allies Hacked . | . . . . Hacks Repelled . | . . . . Allies | -11 -10 -10 -10 -------- Run | Yrd Mat Min Sub Total Allies . | . . . . Largest Group . | . . . . Highest-Rated Group . | . . . . Highest-Rated Ally . | . . . . Total Orders . | . . . . Ally Attacks . | . . . . Total Damage . | . . . . Kills . | . . . . Allies Corrupted . | . . . . Allies Melted . | . . . . Intel | -11 -10 -10 -10 ------- Run | Yrd Mat Min Sub Active Infowar (turns) 1033 | . 643 197 193 Terrain 283 | . . 90 193 Seismic 750 | . 643 107 . Robot Analysis Total . | . . . . Derelict Logs Recovered . | . . . . Drone Launches . | . . . . Drone Recoveries . | . . . . Exploration | -11 -10 -10 -10 ------------- Run | Yrd Mat Min Sub Turns Passed 1161 | 111 643 197 210 Spaces Moved 545 | 52 329 60 104 Core 14 | 8 . . 6 Treads 527 | 44 329 60 94 Legs . | . . . . Wheels 4 | . . . 4 Hover . | . . . . Flight . | . . . . Fastest Speed 50 | 50 160 160 90 Average Speed 157 | 143 160 160 154 Slowest Speed 160 | 160 160 160 160 Overloaded Moves . | . . . . Propulsion Burnouts . | . . . . Robots Hopped . | . . . . Potential Cave-ins . | . . . . Cave-ins Triggered . | . . . . Exploration Rate (%) 22 | 6 62 15 7 Regions Visited 3 Branch Regions 2 Pre-discovered Areas 1 | . . . 1 Known Exits Taken . | . . . . Unknown Exits Taken 3 | 1 1 1 . Scrap Searched 1 | . . 1 . Spaces Dug . | . . . . Terrain Destroyed . | . . . . Melee . | . . . . Projectile . | . . . . AOE . | . . . . Terrain Rammed . | . . . . Walls Destroyed . | . . . . Machines Disabled . | . . . . Actions | -11 -10 -10 -10 --------- Run | Yrd Mat Min Sub Total 767 | 82 407 146 132 Wait 132 | 7 48 77 . Move 542 | 51 328 59 104 Hop . | . . . . Pick Up 19 | 14 3 . 2 Fast Attach . | . . . . Attach 13 | 6 1 . 6 Detach . | . . . . Swap 2 | . . 1 1 Drop 2 | . 2 . . Fire 57 | 4 25 9 19 Melee . | . . . . Ram . | . . . . Kick . | . . . . Crush . | . . . . Escape Stasis . | . . . . Rewire . | . . . . Trap . | . . . . Miscellaneous . | . . . . Route ------- -11/Scrapyard -10/Materials (discovered 2 exits: [*Mat] / [*Min]) -10/Mines (discovered 2 exits: [*Mat] / *Sub) -10/Subcaves History --------- Turn | Location | Event 14 | -11/Scrapyard | Discovered new exit (range 15) 112 | -11/Scrapyard | Entered Materials 304 | -10/Materials | Build established: Mutant 438 | -10/Materials | Discovered new exit (range 5) 595 | -10/Materials | Discovered new exit (range 16) 755 | -10/Materials | Entered Mines 836 | -10/Mines | Discovered new exit (range 14) 942 | -10/Mines | Discovered new exit (range 6) 952 | -10/Mines | Entered Subcaves 1004 | -10/Subcaves | Visited Clippyterm 1008 | -10/Subcaves | Learned location of Section 7 (-3) 1141 | -10/Subcaves | Core integrity fell below 50% 1153 | -10/Subcaves | Core integrity fell below 20% 1162 | -10/Subcaves | Destroyed by C9-6PS(R) with Subdweller Beam Cannon Last Messages --------------- 01115_ QK-QCS(R) destroyed. 01122_ EM Pulse Gun destroyed. 01123_ Subatomizers dissect the Lgt. Assault Rifle. 01134_ Wheel destroyed. 01136_ L7-2YX(R) affixes Scrap Shield Fragment to Scrap Shield. 01136_ Lgt. Assault Rifle destroyed. 01138_ Com. Wheel destroyed. 01139_ Acquired Lgt. Assault Rifle. 01143_ Subatomizers dissect the Corrupted Sub. Monowheel. 01145_ Imp. Terrain Scanner destroyed. 01146_ L7-2YX(R) destroyed. 01151_ Acquired Sub. Machine Gun. 01152_ Lgt. Assault Rifle destroyed. 01158_ Subatomizers dissect the Corrupted Sub. Monowheel. 01160_ Sub. Machine Gun destroyed. 01161_ Acquired 46 matter. Map ----- +----------------------------------------------------+ | ?????????????????????????????????????????????????? | | ?????????????????????????????????????????????????? | | ?????????????????????????????????????????????????? | | ?????????????????????????????????????????????????? | | ?????????????????????????????????????????????????? | | ?????????????????????????????????????????????????? | | ???????????#?????????????????????????????????????? | | ?????????????#??#????????????????????????????????? | | ??? ?????????????????????????????????????????????? | | ??? ??????????????#??????????????????????????????? | | ???????????????????#?????#???????????????????????? | | ?? ??##?????????????????#?#?????????????????????? | | ??????????#???#????????#?????#???????????????????? | | ??? ???????#??????#??????????????????????????????? | | ??????????#??????????????????????????????????????? | | ??????#???????###???????#????????????????????????? | | ##????????##### ####??#??????????????????????????? | | ? ????### #???#?????????????????????????? | | ??###### #???????####??????????????????? | | #?## ### ## ##??###??""##??????????????????? | | ### ## ;; ###?### ###"""#??????????????????? | | ## # ### # ## """##?????????????????? | | =& """ #?????????????????? | | !="""""""" ?????????????? | | # # # # # & %" " "????????????? | | ########### !@R" " "????????????? | | ####???#?????# & " "????????????? | | ###?????? """ ?????????????? | | #??##?### ## """??????????????? | | #???????## ####? ""??????????????? | | ### ##????????# #????? ?????????????? | | ###?#####?????? ??# #??????? ?????????????? | | #??#?????????????# ##?????????????????????? | | ?????????#?????? ####???#??????????????????? | | ?#?#??????????? #?????????????????????????? | | ??#??????????? ?????????????????????????? | | ?????????????? ## ?????????????????????????? | | #??????#?????? ?## ##????????????????????????? | | ???#??????????? ???####??#???? ??????????????????? | | ?????????????????????????????????????????????????? | | ??????#??????????????????????????????????????????? | | ???#??#??????????????????????????????????????????? | | ?????????????????????????????????????????????????? | | ?????????????????????????????????????????????????? | | ?#???????????????????????????????????????????????? | | ?????????????????????????????????????????????????? | | ?????????????????????????????????????????????????? | | #????????????????????????????????????????????????? | | ?????????????????????????????????????????????????? | | ?????????????????????????????????????????????????? | +----------------------------------------------------+ Best States ------------- Heat Dissipation 25 Energy Generation 10 Energy Capacity 250 Matter Stores 300 Matter Capacity 300 Sight Range 16 Terrain Scan Range 16 Terrain Scan Density 10 Evasion (%) 40 Recoil Reduction 2 Item Schematics ----------------- None Robot Schematics ------------------ None Fabricated ------------ Nothing Repaired ---------- Nothing Alien Tech Used ----------------- None Achievements -------------- None Challenges ------------ None Game ------ Seed ExplosiveBurstBattery Manual? 0 Play Time 00:08:37 Cumulative 133.0 hours Start 2025.08.12 @ 12:02:41 End 2025.08.12 @ 12:09:52 Sessions 1 Manual Loads 0 Difficulty Rogue Special Mode None Game No. 230 Rogue 230 Adventurer 0 Explorer 0 Win Type - Total 2 Types 1/0/1/0/0/0/0/0/0/0 Lore% 73 Gallery% 69 Achievement% 49 Wizard Run 0 Options --------- Layout 1 ASCII 0 Keyboard 0 Movement Mouse Keybinds 0 Fullscreen 1 Font 24/Smallcaps Map View 50x40 Zoom Use 0% Tactical HUD 1 Map Filters NONE Filters NONE Steam 1 RUN: 2499661a-dfe9-4fac-a4fa-53d759b2b04a